fUSD/lending_fUSD_20240702
["ID","MTS","AMOUNT","RATE_DAILY","PERIOD"]
[330874045,1719887432675,-880.23,0.0001379,3]
[330874047,1719887432684,-9732.10389538,0.000138,2]
[330874049,1719887432694,-41745.56416324,0.000138,2]
[330874050,1719887432829,-1661.1859856,0.000138,2]
[330874051,1719887432843,-13770.65110881,0.000138,2]
[330874058,1719887438753,-1002.88477434,0.000138,2]
[330874059,1719887438970,-412.0,0.000138,2]
[330874061,1719887441077,-2371.63926961,0.00013799,2]
[330874062,1719887441088,-31675.61007263,0.000138,2]
[330874063,1719887441098,-46050.33075507,0.000138,2]
[330874064,1719887441110,-71007.6315129,0.000138,2]
[330874065,1719887441122,-313.25529941,0.000138,2]
[330874066,1719887441134,-518.19162688,0.000138,2]
[330874067,1719887441322,-650.0,0.000138,2]
[330874083,1719887904278,3073.51761569,0.00011199,2]
[330874085,1719887911791,150.5,0.0001499,30]
[330874086,1719887912294,150.5,0.0001498,30]
[330874087,1719887912798,150.5,0.0001497,30]
[330874088,1719888031339,150.5,0.0001399,30]
[330874089,1719888032213,265.36,0.0001399,30]
[330874092,1719888100717,254.99935053,0.00022098,120]
[330874093,1719888138262,-600.0,0.00012484,2]
[330874096,1719888439232,748.0,0.000111,2]
[330874099,1719888632051,-993.66847,0.00012421,2]
[330874100,1719888632061,-300.0,0.00013066,2]
[330874101,1719888632072,-9745.24296297,0.00013067,2]
[330874102,1719888632084,-14154.75703703,0.00013067,2]
[330874104,1719888632093,-1770.42750183,0.00013135,2]
[330874107,1719888632108,-1046.63716188,0.00013135,2]
[330874109,1719888632118,-751.53554969,0.00013145,2]
[330874111,1719888632129,-361.36554768,0.00013145,2]
[330874113,1719888632141,-9147.59323782,0.00013145,2]
[330874115,1719888632153,-401.44091038,0.00013145,2]
[330874117,1719888632165,-750.93154305,0.00013145,2]
[330874118,1719888632476,-13694.09321138,0.00013145,2]
[330874119,1719888632486,-250.0,0.00013145,2]
[330874120,1719888632496,-177.44,0.00013177,2]
[330874121,1719888632505,-250.0,0.00013311,2]
[330874122,1719888632515,-748.0,0.00013364,2]
[330874123,1719888632524,-377.31957245,0.00013531,2]
[330874124,1719888632534,-1000.0,0.0001359,2]
[330874125,1719888632543,-1866.7433,0.000136,2]
[330874127,1719888632553,-612.89,0.000136,2]
[330874129,1719888632562,-2751.0,0.00013699,2]
[330874131,1719888632572,-2922.62,0.00013699,2]
[330874133,1719888632581,-10000.0,0.00013699,2]
[330874134,1719888632590,-1500.0,0.00013699,5]
[330874135,1719888632600,-200.0,0.00013699,2]
[330874136,1719888632609,-100000.0,0.000137,2]
[330874137,1719888632618,-499.99,0.000137,2]
[330874138,1719888632628,-2134.47534264,0.00013799,2]
[330874139,1719888632638,-452.1051,0.000138,2]
[330874140,1719888632647,-14203.89455373,0.000138,2]
[330874141,1719888632656,-887.04091,0.000138,2]
[330874142,1719888632666,-358.42478553,0.000138,2]
[330874143,1719888632675,-344.22835006,0.000138,2]
[330874144,1719888632684,-721.20648713,0.00013849,2]
[330874145,1719888632694,-358.42478551,0.00013849,2]
[330874146,1719888632703,-267.73423432,0.00013889,2]
[330874147,1719888632713,-358.42478551,0.00013898,2]
[330874148,1719888632722,-270.66274419,0.00013899,2]
[330874149,1719888632731,-140845.6310562,0.000139,2]
[330874150,1719888637876,-3533.5470046,0.000139,2]
[330874152,1719888637888,-22256.41329664,0.000139,2]
[330874154,1719888637900,-5588.92623156,0.000139,2]
[330874155,1719888637912,-72775.482411,0.000139,2]
[330874156,1719888637922,-5402.3655,0.000139,2]
[330874157,1719888637932,-21093.37057539,0.000139,2]
[330874158,1719888637944,-2699.47202461,0.000139,2]
[330874159,1719888637954,-358.42478551,0.00013947,2]
[330874160,1719888637964,-235.86876767,0.00013989,2]
[330874161,1719888637974,-367.14829552,0.00013989,2]
[330874162,1719888637984,-247.03071541,0.0001399,2]
[330874163,1719888637993,-247.03071541,0.0001399,2]
[330874164,1719888638004,-1352.41568506,0.00013996,2]
[330874165,1719888638013,-358.42478551,0.00013996,2]
[330874166,1719888638023,-170.45168611,0.00013996,2]
[330874167,1719888638033,-895.68794085,0.00013996,2]
[330874168,1719888638043,-5000.0,0.00013999,2]
[330874169,1719888638053,-2358.68,0.00013999,3]
[330874170,1719888638062,-247.51803792,0.00013999,2]
[330874171,1719888638072,-150.0,0.00014,2]
[330874172,1719888638083,-150.0,0.00014,2]
[330874173,1719888638092,-48280.03333178,0.00014,2]
[330874174,1719888638328,-701.89106013,0.00014,2]
[330874177,1719888638341,-2128.76516817,0.00014,2]
[330874183,1719888640412,-1984.80019366,0.00014,2]
[330874191,1719888643476,-879.5606519,0.00014,2]
[330874195,1719888646187,-270.462826,0.00014,2]
[330874196,1719888646199,-819.48864063,0.00014,2]
[330874198,1719888675008,328.08836338,0.00022,120]
[330874201,1719888776934,22963.4898887,0.00011199,2]
[330874202,1719888780119,10663.61829733,0.00011199,2]
[330874203,1719888796416,750.0,0.00010959,2]
[330874204,1719888798717,1273.25950466,0.00011199,2]
[330874205,1719888806930,653.44,0.00010959,2]
[330874206,1719888817470,544.53,0.00010959,2]
[330874207,1719888819760,961.26934962,0.00011199,2]
[330874208,1719888824734,1263.5888371,0.00011199,2]
[330874209,1719888827973,453.78,0.00010959,2]
[330874210,1719888835023,2158.23698372,0.00011199,2]
[330874212,1719888838615,378.15,0.00010959,2]
[330874213,1719888843405,893.67742693,0.00011199,2]
[330874214,1719888849245,315.12,0.00010959,2]
[330874215,1719888857851,721.20648713,0.00011199,2]
[330874216,1719888859741,1137.584726,0.00011199,2]
[330874217,1719888860128,262.6,0.00010959,2]
[330874218,1719888870891,218.84,0.00010959,2]
[330874219,1719888881952,182.36,0.00010959,2]
[330874220,1719888883160,660.33561149,0.00011199,2]
[330874221,1719888886394,464.92071046,0.00011199,2]
[330874222,1719888893096,151.97,0.00010959,2]
[330874223,1719888903025,759.87,0.00010959,2]
[330874224,1719888904196,484.49767199,0.00011199,2]
[330874225,1719888910282,261.88050805,0.00011199,2]
[330874226,1719888917561,479.96329715,0.00011199,2]
[330874228,1719888925698,161.66111581,0.00011199,2]
[330874229,1719888930729,155.20012335,0.00011199,2]
[330874230,1719888930945,346.44117678,0.00011199,2]
[330874232,1719888934775,218.4586013,0.00011199,2]
[330874233,1719888940517,188.6491962,0.00011199,2]
[330874234,1719888940548,187.81568051,0.00011199,2]
[330874235,1719888941481,155.39713839,0.00011199,2]
[330874236,1719888941634,163.998128,0.00011199,2]
[330874237,1719888942371,156.04367295,0.00011199,2]
[330874238,1719888943433,362.41946011,0.00011199,2]
[330874240,1719888947297,209.00634901,0.00011199,2]
[330874241,1719888948237,235.30745469,0.00011199,2]
[330874243,1719888955639,366.54534617,0.00011199,2]
[330874244,1719888957812,956.58,0.00010589,2]
[330874245,1719888963490,163.63235046,0.00011199,2]
[330874246,1719888964929,317.49765893,0.00011199,2]
[330874247,1719888965424,201.09893141,0.00011199,2]
[330874248,1719888965634,332.38908728,0.00011199,2]
[330874249,1719888966804,158.31418936,0.00011199,2]
[330874251,1719888972767,269.38352443,0.00011199,2]
[330874252,1719888987740,155.38268573,0.00011199,2]
[330874253,1719888989286,155.57229694,0.00011199,2]
[330874254,1719889083860,721.20648713,0.00011199,2]
[330874255,1719889096553,229414.38809807,0.00011199,2]
[330874256,1719889103732,1011.85473186,0.00011199,2]
[330874257,1719889122168,155.23120073,0.00011199,10]
[330874258,1719889123711,2203.73627997,0.00011199,2]
[330874261,1719889152848,186.92753727,0.00011199,2]
[330874262,1719889198107,155.0,0.00011199,2]
[330874263,1719889229054,155.14523405,0.00011199,2]
[330874264,1719889255959,319.35680713,0.00011199,2]
[330874266,1719889303673,1623.3273988,0.00011199,2]
[330874267,1719889318667,1623.3273988,0.00011199,2]
[330874268,1719889373365,3073.51761569,0.00011199,2]
[330874269,1719889382369,3073.51761569,0.00011199,2]
[330874270,1719889394766,270.35493741,0.00011199,2]
[330874271,1719889403700,220.7400091,0.00011199,2]
[330874272,1719889447267,227.09542874,0.00011199,2]
[330874274,1719889479403,721.20648713,0.00011199,2]
[330874275,1719889491835,908.75,9.789e-05,2]
[330874276,1719889493142,191.17750657,0.00011199,2]
[330874277,1719889494397,721.20648713,0.00011199,2]
[330874278,1719889511538,155.17882879,0.00011199,2]
[330874279,1719889567765,29077.75483188,0.00011199,2]
[330874280,1719889581320,269.34473484,0.00011199,2]
[330874281,1719889609986,301.13573046,0.00011199,2]
[330874282,1719889617803,483.28391509,0.00011199,2]
[330874283,1719889622376,3073.51761569,0.00011199,2]
[330874284,1719889670655,440.79159944,0.00011199,2]
[330874285,1719889681419,284.90556856,0.00011199,2]
[330874286,1719889681641,155.39784483,0.00011199,2]
[330874287,1719889706761,416.35251911,0.00011199,2]
[330874288,1719889760259,-167.96,0.00011657,2]
[330874289,1719889760282,-216.93,0.00011677,2]
[330874290,1719889760304,-2177.3108,0.00011756,2]
[330874291,1719889810561,155.0,0.00011199,2]
[330874292,1719889832090,-300.0,0.00011755,2]
[330874294,1719889832099,-3666.7256,0.00011756,2]
[330874297,1719889833226,-1000.0,0.00011756,2]
[330874298,1719889833238,-501.08,0.00011756,2]
[330874299,1719889833249,-1801.40392299,0.00011756,2]
[330874300,1719889833481,-2473.7,0.00011756,2]
[330874301,1719889833493,-510.3000105,0.00011756,2]
[330874302,1719889833504,-726.48604474,0.00011756,2]
[330874303,1719889833515,-388.88750137,0.00011756,2]
[330874306,1719889838077,-10654.1061204,0.00011756,2]
[330874308,1719889838087,-250.0,0.00011825,2]
[330874310,1719889838096,-160.55280853,0.00012034,2]
[330874312,1719889838105,-908.75,0.00012053,2]
[330874314,1719889838114,-501.81,0.00012096,2]
[330874316,1719889838124,-250.0,0.00012128,2]
[330874318,1719889838133,-501.81,0.00012129,2]
[330874320,1719889838143,-1000.0,0.00012134,2]
[330874322,1719889838153,-1719.16,0.00012134,2]
[330874324,1719889838162,-499.99,0.00012134,2]
[330874326,1719889838172,-941.62,0.00012134,2]
[330874328,1719889838183,-501.81,0.00012162,2]
[330874330,1719889838192,-501.81,0.00012195,2]
[330874332,1719889838202,-501.81,0.00012229,2]
[330874334,1719889838212,-501.81,0.00012262,2]
[330874336,1719889838222,-501.81,0.00012295,2]
[330874338,1719889838232,-227.09542874,0.00012302,2]
[330874339,1719889838242,-721.20648713,0.00012302,2]
[330874340,1719889838252,-501.81,0.00012328,2]
[330874341,1719889838261,-501.81,0.00012361,2]
[330874342,1719889838271,-501.81,0.00012394,2]
[330874343,1719889838281,-209.99820565,0.00012428,2]
[330874344,1719889838293,-291.81179435,0.00012428,2]
[330874345,1719889838303,-501.81,0.00012461,2]
[330874346,1719889838313,-501.81,0.00012494,2]
[330874347,1719889838323,-3277.35274553,0.00012503,2]
[330874348,1719889838335,-877.78623898,0.00012503,2]
[330874349,1719889838347,-500.37717444,0.00012503,2]
[330874350,1719889838359,-1014.16606152,0.00012503,2]
[330874351,1719889838371,-1611.12328543,0.00012503,2]
[330874352,1719889838383,-3385.96953395,0.00012503,2]
[330874353,1719889838395,-10668.95258467,0.00012503,2]
[330874354,1719889838406,-3920.13,0.00012506,2]
[330874355,1719889838415,-296.23,0.00012507,2]
[330874356,1719889838425,-3920.13,0.0001251,2]
[330874357,1719889838434,-3920.13,0.00012513,2]
[330874358,1719889838444,-3920.13,0.00012516,2]
[330874359,1719889838454,-3920.13,0.0001252,2]
[330874360,1719889838474,-3920.13,0.00012523,2]
[330874361,1719889838490,-3920.13,0.00012526,2]
[330874362,1719889838505,-501.81,0.00012527,2]
[330874363,1719889838522,-3920.13,0.00012529,2]
[330874364,1719889838537,-3920.13,0.00012533,2]
[330874365,1719889838548,-3920.13,0.00012536,2]
[330874366,1719889838563,-3920.13,0.00012539,2]
[330874367,1719889838577,-3920.13,0.00012543,2]
[330874368,1719889838590,-3920.13,0.00012546,2]
[330874369,1719889838603,-3920.13,0.00012549,2]
[330874370,1719889838617,-708.291,0.00012552,2]
[330874371,1719889838630,-3920.13,0.00012552,2]
[330874372,1719889838645,-3920.13,0.00012556,2]
[330874373,1719889838658,-3920.13,0.00012559,2]
[330874374,1719889838673,-501.81,0.0001256,2]
[330874375,1719889838687,-3920.13,0.00012562,2]
[330874376,1719889838699,-3920.13,0.00012566,2]
[330874377,1719889838712,-3920.13,0.00012569,2]
[330874378,1719889838727,-501.81,0.00012593,2]
[330874379,1719889838742,-501.81,0.00012627,2]
[330874380,1719889838757,-501.81,0.0001266,2]
[330874381,1719889838771,-501.81,0.00012693,2]
[330874382,1719889838785,-501.81,0.00012726,2]
[330874383,1719889838797,-420.0,0.00012908,2]
[330874384,1719889838809,-150.0,0.00013019,2]
[330874385,1719889838820,-220.33,0.00013068,3]
[330874386,1719889838830,-155.0,0.00013128,2]
[330874387,1719889838843,-216.93,0.00013136,2]
[330874388,1719889838856,-151.0,0.0001316,2]
[330874389,1719889838869,-390.299461,0.0001316,2]
[330874390,1719889838883,-390.299461,0.0001316,2]
[330874391,1719889838896,-151.0,0.0001316,2]
[330874392,1719889838909,-151.0,0.0001316,2]
[330874393,1719889838922,-151.0,0.0001316,2]
[330874394,1719889838937,-48026.0,0.0001316,2]
[330874395,1719889838952,-150.0,0.0001326,2]
[330874396,1719889838965,-168.42,0.00013314,2]
[330874397,1719889838975,-2500.0,0.00013488,2]
[330874398,1719889838986,-150.0,0.00013501,2]
[330874399,1719889838997,-242.8227798,0.00013516,2]
[330874400,1719889839008,-151.0,0.00013584,2]
[330874401,1719889839021,-151.0,0.00013584,2]
[330874402,1719889839034,-151.0,0.00013584,2]
[330874403,1719889839047,-151.0,0.00013584,2]
[330874404,1719889839061,-151.0,0.00013584,2]
[330874405,1719889839072,-151.0,0.00013584,2]
[330874406,1719889839084,-260.689577,0.00013584,2]
[330874407,1719889839096,-243.231224,0.00013584,2]
[330874408,1719889839109,-243.231224,0.00013584,2]
[330874409,1719889839125,-151.0,0.00013584,2]
[330874410,1719889839136,-154.439094,0.00013584,2]
[330874411,1719889839147,-151.0,0.00013584,2]
[330874412,1719889839159,-151.938479,0.00013584,2]
[330874413,1719889839171,-151.0,0.00013584,2]
[330874414,1719889839183,-151.0,0.00013584,2]
[330874415,1719889839196,-151.0,0.00013584,2]
[330874416,1719889839222,-151.0,0.00013584,2]
[330874417,1719889839237,-151.0,0.00013584,2]
[330874418,1719889839250,-151.0,0.00013588,2]
[330874419,1719889839264,-151.0,0.00013588,2]
[330874420,1719889839278,-151.0,0.00013588,2]
[330874421,1719889839290,-151.0,0.00013588,2]
[330874422,1719889839302,-151.0,0.00013588,2]
[330874423,1719889839316,-151.0,0.00013588,2]
[330874424,1719889839329,-243.231224,0.00013588,2]
[330874425,1719889839341,-243.231224,0.00013588,2]
[330874426,1719889839354,-151.0,0.00013588,2]
[330874427,1719889839367,-151.0,0.00013588,2]
[330874428,1719889839379,-151.0,0.00013588,2]
[330874429,1719889839391,-151.0,0.00013588,2]
[330874430,1719889839404,-151.0,0.00013588,2]
[330874431,1719889839417,-151.0,0.00013588,2]
[330874432,1719889839429,-151.0,0.00013588,2]
[330874433,1719889839442,-202.046526,0.00013588,2]
[330874434,1719889839454,-390.299461,0.00013588,2]
[330874435,1719889839466,-390.299461,0.00013588,2]
[330874436,1719889839490,-151.0,0.00013588,2]
[330874437,1719889839506,-151.0,0.00013588,2]
[330874438,1719889839521,-151.0,0.00013588,2]
[330874439,1719889839537,-72055.9941,0.00013588,2]
[330874440,1719889839551,-2313.09607431,0.00013599,2]
[330874441,1719889839573,-2635.56594283,0.00013599,2]
[330874442,1719889839591,-453.70348286,0.00013599,2]
[330874443,1719889839605,-1000.0,0.00013599,2]
[330874444,1719889839619,-46.29651714,0.00013599,2]
[330874445,1719889839673,264.56470044,0.00011199,2]
[330874446,1719889839717,-345.7165247,0.00013599,2]
[330874447,1719889839730,-956.1971,0.000136,2]
[330874448,1719889839744,-215.45,0.000136,2]
[330874449,1719889839757,-1000.0,0.0001365,2]
[330874450,1719889839769,-392.01304182,0.00013674,2]
[330874451,1719889839782,-79.81144442,0.0001369,2]
[330874452,1719889839799,-579.19031672,0.0001369,2]
[330874453,1719889839811,-1101.55866263,0.00013698,3]
[330874454,1719889839824,-1831.51,0.00013699,2]
[330874455,1719889839837,-200.0,0.00013699,2]
[330874456,1719889839848,-1500.0,0.00013699,5]
[330874457,1719889839861,-500.0,0.00013699,2]
[330874458,1719889839873,-2751.0,0.00013699,2]
[330874459,1719889839887,-176.09,0.00013699,2]
[330874460,1719889839901,-1235.98,0.00013699,2]
[330874461,1719889839913,-151.0,0.00013699,2]
[330874462,1719889839926,-15556.38,0.00013699,2]
[330874463,1719889839939,-10000.0,0.00013699,2]
[330874464,1719889839951,-4548.48,0.00013699,2]
[330874465,1719889839963,-16411.78011759,0.00013699,2]
[330874466,1719889839979,-83588.21988241,0.00013699,2]
[330874467,1719889839991,-152.480622,0.00013699,2]
[330874468,1719889840004,-151.0,0.00013699,2]
[330874469,1719889840016,-151.628701,0.00013699,2]
[330874470,1719889840028,-151.0,0.00013699,2]
[330874471,1719889840040,-151.0,0.00013699,2]
[330874472,1719889840052,-151.0,0.00013699,2]
[330874473,1719889840064,-151.0,0.00013699,2]
[330874474,1719889840076,-151.0,0.00013699,2]
[330874475,1719889840088,-165.509082,0.00013699,2]
[330874476,1719889840100,-151.0,0.00013699,2]
[330874477,1719889840112,-210.748817,0.00013699,2]
[330874480,1719889840124,-210.748817,0.00013699,2]
[330874481,1719889840136,-210.748817,0.00013699,2]
[330874482,1719889840147,-210.748817,0.00013699,2]
[330874483,1719889840159,-154.494938,0.00013699,2]
[330874484,1719889840171,-151.0,0.00013699,2]
[330874485,1719889840181,-151.0,0.00013699,2]
[330874486,1719889840192,-151.0,0.00013699,2]
[330874487,1719889840204,-151.0,0.00013699,2]
[330874488,1719889840215,-151.0,0.00013699,2]
[330874489,1719889840227,-151.0,0.00013699,2]
[330874490,1719889840238,-151.0,0.00013699,2]
[330874491,1719889840249,-151.0,0.00013699,2]
[330874492,1719889840260,-151.0,0.00013699,2]
[330874493,1719889840277,-152.968466,0.00013699,2]
[330874494,1719889840290,-503.210958,0.00013699,2]
[330874495,1719889840303,-503.210958,0.00013699,2]
[330874496,1719889840317,-503.210958,0.00013699,2]
[330874497,1719889840329,-503.210958,0.00013699,2]
[330874498,1719889840344,-500.0,0.00013699,2]
[330874499,1719889840357,-284.80089114,0.00013699,2]
[330874500,1719889840371,-500.0,0.00013699,2]
[330874501,1719889840384,-500.0,0.00013699,2]
[330874502,1719889840397,-381.35058964,0.00013699,2]
[330874503,1719889840410,-500.0,0.00013699,2]
[330874504,1719889840424,-500.0,0.00013699,2]
[330874505,1719889840437,-500.0,0.00013699,2]
[330874506,1719889840449,-500.0,0.00013699,2]
[330874507,1719889840462,-500.0,0.00013699,2]
[330874508,1719889840474,-500.0,0.00013699,2]
[330874509,1719889840487,-151.0,0.00013699,2]
[330874510,1719889840499,-151.0,0.00013699,2]
[330874511,1719889840511,-151.0,0.00013699,2]
[330874512,1719889840522,-151.0,0.00013699,2]
[330874513,1719889840534,-151.0,0.00013699,2]
[330874514,1719889840546,-151.0,0.00013699,2]
[330874515,1719889840560,-151.0,0.00013699,2]
[330874516,1719889840572,-151.0,0.00013699,2]
[330874517,1719889840583,-151.0,0.00013699,2]
[330874518,1719889840595,-151.0,0.00013699,2]
[330874519,1719889840608,-151.0,0.00013699,2]
[330874520,1719889840619,-151.0,0.00013699,2]
[330874521,1719889840631,-243.231224,0.00013699,2]
[330874522,1719889840644,-243.231224,0.00013699,2]
[330874523,1719889840656,-243.231224,0.00013699,2]
[330874524,1719889840669,-243.231224,0.00013699,2]
[330874525,1719889840682,-159.900407,0.00013699,2]
[330874526,1719889840693,-151.0,0.00013699,2]
[330874527,1719889840704,-151.0,0.00013699,2]
[330874528,1719889840716,-151.0,0.00013699,2]
[330874529,1719889840727,-151.0,0.00013699,2]
[330874530,1719889840738,-166.501179,0.00013699,2]
[330874531,1719889840749,-151.0,0.00013699,2]
[330874532,1719889840760,-151.0,0.00013699,2]
[330874533,1719889840771,-151.0,0.00013699,2]
[330874534,1719889840781,-151.0,0.00013699,2]
[330874535,1719889840792,-151.0,0.00013699,2]
[330874536,1719889840803,-151.0,0.00013699,2]
[330874537,1719889840814,-390.299461,0.00013699,2]
[330874538,1719889840825,-390.299461,0.00013699,2]
[330874539,1719889840836,-390.299461,0.00013699,2]
[330874540,1719889840847,-390.299461,0.00013699,2]
[330874541,1719889840859,-151.0,0.00013699,2]
[330874542,1719889840870,-151.0,0.00013699,2]
[330874543,1719889840881,-151.0,0.00013699,2]
[330874544,1719889840892,-151.0,0.00013699,2]
[330874545,1719889840902,-151.0,0.00013699,2]
[330874547,1719889840916,-151.0,0.00013699,2]
[330874548,1719889840927,-39467.7848,0.000137,2]
[330874549,1719889840939,-137254.5705,0.000137,2]
[330874550,1719889840949,-1000.0,0.000137,2]
[330874551,1719889840960,-151.542244,0.000137,2]
[330874552,1719889840972,-152.046843,0.000137,2]
[330874553,1719889840983,-152.038252,0.000137,2]
[330874554,1719889840994,-151.0,0.000137,2]
[330874555,1719889841004,-152.314491,0.000137,2]
[330874556,1719889841015,-151.0,0.000137,2]
[330874557,1719889841025,-153.779869,0.000137,2]
[330874558,1719889841036,-172.514403,0.000137,2]
[330874559,1719889841047,-152.5092,0.000137,2]
[330874560,1719889841059,-151.0,0.000137,2]
[330874561,1719889841070,-151.0,0.000137,2]
[330874562,1719889841084,-152.953719,0.000137,2]
[330874563,1719889841096,-151.0,0.000137,2]
[330874564,1719889841108,-151.0,0.000137,2]
[330874565,1719889841120,-151.0,0.000137,2]
[330874566,1719889841131,-151.0,0.000137,2]
[330874567,1719889841142,-210.748817,0.000137,2]
[330874568,1719889841153,-210.748817,0.000137,2]
[330874569,1719889841164,-210.748817,0.000137,2]
[330874570,1719889841175,-210.748817,0.000137,2]
[330874571,1719889841186,-151.0,0.000137,2]
[330874572,1719889841196,-151.0,0.000137,2]
[330874573,1719889841207,-151.0,0.000137,2]
[330874574,1719889841220,-151.0,0.000137,2]
[330874575,1719889841589,-151.0,0.000137,2]
[330874576,1719889841618,-151.0,0.000137,2]
[330874577,1719889841635,-151.0,0.000137,2]
[330874578,1719889841646,-242.267832,0.000137,2]
[330874579,1719889841656,-503.210958,0.000137,2]
[330874580,1719889841666,-503.210958,0.000137,2]
[330874581,1719889841675,-503.210958,0.000137,2]
[330874582,1719889841684,-503.210958,0.000137,2]
[330874583,1719889841694,-151.0,0.000137,2]
[330874584,1719889841704,-151.0,0.000137,2]
[330874585,1719889841714,-151.0,0.000137,2]
[330874586,1719889841725,-151.0,0.000137,2]
[330874587,1719889841735,-151.0,0.000137,2]
[330874588,1719889841745,-151.0,0.000137,2]
[330874589,1719889841755,-155.317411,0.000137,2]
[330874590,1719889841765,-151.0,0.000137,2]
[330874591,1719889841775,-151.0,0.000137,2]
[330874592,1719889841784,-151.0,0.000137,2]
[330874593,1719889841793,-151.0,0.000137,2]
[330874594,1719889841803,-243.231224,0.000137,2]
[330874595,1719889841813,-243.231224,0.000137,2]
[330874596,1719889841822,-243.231224,0.000137,2]
[330874597,1719889841831,-243.231224,0.000137,2]
[330874598,1719889841840,-151.0,0.000137,2]
[330874599,1719889841849,-151.0,0.000137,2]
[330874600,1719889841859,-151.0,0.000137,2]
[330874601,1719889841868,-151.0,0.000137,2]
[330874602,1719889841878,-151.0,0.000137,2]
[330874603,1719889841890,-151.0,0.000137,2]
[330874604,1719889841900,-151.0,0.000137,2]
[330874605,1719889841910,-151.0,0.000137,2]
[330874606,1719889841920,-151.0,0.000137,2]
[330874607,1719889841931,-151.0,0.000137,2]
[330874608,1719889841940,-390.299461,0.000137,2]
[330874609,1719889841951,-390.299461,0.000137,2]
[330874610,1719889841961,-390.299461,0.000137,2]
[330874611,1719889841971,-390.299461,0.000137,2]
[330874612,1719889841980,-151.0,0.000137,2]
[330874613,1719889841990,-151.0,0.000137,2]
[330874614,1719889842000,-151.0,0.000137,2]
[330874615,1719889842009,-151.0,0.000137,2]
[330874616,1719889842020,-151.0,0.000137,2]
[330874617,1719889842029,-151.0,0.000137,2]
[330874618,1719889842039,-151.0,0.00013721,2]
[330874619,1719889842051,-151.0,0.00013721,2]
[330874620,1719889842060,-151.0,0.00013721,2]
[330874621,1719889842069,-210.748817,0.00013721,2]
[330874622,1719889842079,-210.748817,0.00013721,2]
[330874623,1719889842090,-265.320849,0.00013721,2]
[330874624,1719889842100,-151.0,0.00013721,2]
[330874625,1719889842109,-151.0,0.00013721,2]
[330874626,1719889842118,-503.210958,0.00013721,2]
[330874627,1719889842127,-503.210958,0.00013721,2]
[330874628,1719889842136,-150.0,0.00013742,2]
[330874629,1719889842144,-392.01304182,0.0001375,2]
[330874630,1719889842154,-15946.63243902,0.0001379,2]
[330874631,1719889842164,-151.0,0.00013799,2]
[330874632,1719889842174,-151.0,0.00013799,2]
[330874633,1719889842184,-151.0,0.00013799,2]
[330874634,1719889842194,-151.0,0.00013799,2]
[330874635,1719889842204,-151.0,0.00013799,2]
[330874636,1719889842215,-243.231224,0.00013799,2]
[330874637,1719889842224,-243.231224,0.00013799,2]
[330874638,1719889842234,-151.0,0.00013799,2]
[330874639,1719889842244,-151.0,0.00013799,2]
[330874640,1719889842254,-13346.23957551,0.00013799,2]
[330874641,1719889842263,-151.0,0.00013799,2]
[330874642,1719889842272,-156.3334,0.000138,2]
[330874643,1719889842282,-151.0,0.000138,2]